bitfinex-derivatives/quotes_BTCF0:USTF0_20241122
["timestamp","ask_amount","ask_price","bid_price","bid_amount"]
[1732233772039,2.08297337,98301.0,98300.0,0.31]
[1732233772234,2.08809967,98301.0,98300.0,0.31]
[1732233772738,2.21054534,98301.0,98300.0,0.301]
[1732233772939,2.21054534,98301.0,98300.0,0.309]
[1732233773138,2.08952586,98301.0,98300.0,0.309]
[1732233773430,2.08952586,98301.0,98300.0,0.21]
[1732233773638,2.2613501,98301.0,98300.0,0.21]
[1732233773935,2.13397795,98301.0,98300.0,0.21]
[1732233774131,0.58317295,98301.0,98300.0,0.21]
[1732233775631,0.55329422,98301.0,98300.0,0.21]
[1732233775837,0.58445682,98301.0,98300.0,0.205]
[1732233776031,0.58745682,98301.0,98300.0,0.09598125]
[1732233776228,0.59259153,98301.0,98300.0,0.09598125]
[1732233776431,0.59059153,98301.0,98300.0,0.09598125]
[1732233776629,0.61291991,98301.0,98300.0,0.09598125]
[1732233776838,0.7601336,98301.0,98300.0,0.05098125]
[1732233777027,0.65919281,98301.0,98300.0,0.05098125]
[1732233777442,0.66426016,98301.0,98300.0,0.05098125]
[1732233777739,0.66426016,98301.0,98300.0,0.00999025]
[1732233778630,0.70871232,98301.0,98300.0,0.21]
[1732233778936,2.20871232,98301.0,98300.0,0.21]
[1732233779234,2.20671232,98301.0,98282.0,5.79e-05]
[1732233779541,0.13223571,98283.0,98282.0,0.1900579]
[1732233779742,0.26639629,98283.0,98282.0,0.1900579]
[1732233780432,0.17557384,98283.0,98282.0,0.1900579]
[1732233780636,0.15755502,98283.0,98282.0,0.1900579]
[1732233780940,0.001,98283.0,98282.0,0.1900579]
[1732233782334,0.10488,98284.0,98282.0,0.1900579]
[1732233782527,0.002,98283.0,98282.0,0.1910579]
[1732233783138,0.155694,98284.0,98282.0,0.1910579]
[1732233783645,0.155694,98284.0,98282.0,0.1900579]
[1732233783832,0.155694,98284.0,98282.0,0.1910579]
[1732233784030,0.001,98283.0,98282.0,0.1910579]
[1732233784440,0.09182245,98283.0,98282.0,0.1910579]
[1732233784640,0.01883164,98283.0,98282.0,0.1910579]
[1732233784939,0.001,98283.0,98282.0,0.1910579]
[1732233785139,0.10965419,98283.0,98282.0,0.1910579]
[1732233785334,0.09182245,98283.0,98282.0,0.1910579]
[1732233785537,0.01883002,98283.0,98282.0,0.1910579]
[1732233785734,0.19870245,98284.0,98282.0,0.1900579]
[1732233786037,0.24951645,98284.0,98282.0,0.1900579]
[1732233786344,0.001,98283.0,98282.0,0.1900579]
[1732233786935,0.155694,98284.0,98282.0,0.1900579]
[1732233787134,0.156694,98284.0,98282.0,0.1900579]
[1732233787442,0.157694,98284.0,98282.0,0.1900579]
[1732233787629,0.156694,98284.0,98282.0,0.1900579]
[1732233787830,0.001,98283.0,98282.0,0.1900579]
[1732233789639,0.10488,98283.0,98282.0,0.1900579]
[1732233790042,0.09182245,98284.0,98282.0,0.1900579]
[1732233790241,0.09082245,98286.0,98282.0,0.1900579]
[1732233790449,0.04173862,98288.0,98282.0,0.1910579]
[1732233790642,0.1131,98290.0,98286.0,0.3608]
[1732233790947,0.050812,98288.0,98286.0,0.19]
[1732233791339,0.09082245,98289.0,98286.0,0.19]
[1732233791542,0.14588757,98290.0,98286.0,0.19]
[1732233791543,0.23671002,98290.0,98286.0,0.19]
[1732233791939,0.14588757,98290.0,98286.0,0.19]
[1732233792138,0.050812,98289.0,98286.0,0.19]
[1732233792338,0.23671002,98290.0,98286.0,0.19]
[1732233792641,0.050812,98288.0,98286.0,0.19]
[1732233792838,0.01101714,98287.0,98286.0,0.19]
[1732233793045,0.01101714,98287.0,98286.0,0.192]
[1732233793633,0.01101714,98287.0,98286.0,0.193]
[1732233794143,0.01101714,98287.0,98286.0,0.192]
[1732233795044,0.01101714,98287.0,98286.0,0.49724]
[1732233795242,0.03988757,98290.0,98286.0,0.49724]
[1732233795435,0.01102017,98289.0,98286.0,0.192]
[1732233795635,0.01102011,98288.0,98286.0,0.192]
[1732233796039,0.01102011,98287.0,98286.0,0.191]
[1732233796241,0.01102011,98287.0,98286.0,0.192]
[1732233796451,0.01102011,98287.0,98286.0,0.49924]
[1732233796452,0.01102072,98287.0,98286.0,0.49924]
[1732233796639,0.01102072,98291.0,98286.0,0.49924]
[1732233796843,0.01102072,98290.0,98286.0,0.195]
[1732233797046,0.0071,98295.0,98287.0,0.30524]
[1732233797348,0.0071,98295.0,98294.0,0.3608]
[1732233797537,0.050808,98297.0,98294.0,0.5508]
[1732233797736,0.050808,98297.0,98295.0,0.0353]
[1732233797937,0.050808,98297.0,98295.0,0.2353]
[1732233798150,0.050808,98297.0,98295.0,0.5405]
[1732233798348,0.0071,98302.0,98295.0,0.5405]
[1732233798540,0.050808,98296.0,98295.0,0.2353]
[1732233798738,0.050808,98296.0,98295.0,0.5405]
[1732233799745,0.001,98296.0,98295.0,0.5405]
[1732233799944,0.0071,98302.0,98295.0,0.5435]
[1732233800145,0.057905,98302.0,98295.0,0.5383]
[1732233800351,0.050805,98301.0,98295.0,0.589108]
[1732233800549,0.001,98296.0,98295.0,0.595108]
[1732233800756,0.0071,98302.0,98299.0,0.050806]
[1732233800951,0.050803,98306.0,98300.0,0.0382]
[1732233801151,0.050803,98306.0,98305.0,0.3608]
[1732233801451,0.050803,98306.0,98305.0,0.5708]
[1732233803353,0.050803,98306.0,98305.0,0.5758]
[1732233803950,0.050803,98306.0,98305.0,0.5778]
[1732233805652,0.050803,98306.0,98305.0,0.5728]
[1732233805850,0.052803,98306.0,98305.0,0.5728]
[1732233806562,0.050803,98306.0,98305.0,0.5758]
[1732233806761,0.050803,98306.0,98305.0,0.5738]
[1732233806961,0.050803,98306.0,98305.0,0.5748]
[1732233807177,0.050803,98306.0,98305.0,0.5738]
[1732233807464,0.050801,98309.0,98305.0,0.5738]
[1732233807958,0.09828194,98313.0,98305.0,0.5738]
[1732233808269,0.04748294,98313.0,98305.0,0.5738]
[1732233808659,0.051803,98306.0,98305.0,0.5718]
[1732233808856,0.051803,98306.0,98305.0,0.5728]
[1732233809059,0.001,98306.0,98305.0,0.5728]
[1732233809355,0.050801,98309.0,98305.0,0.5728]
[1732233809662,0.04748294,98313.0,98305.0,0.5708]
[1732233809663,0.050802,98308.0,98305.0,0.5708]
[1732233809865,0.050802,98308.0,98305.0,0.5728]
[1732233810161,0.050802,98307.0,98305.0,0.5728]
[1732233810558,0.050802,98307.0,98305.0,0.5738]
[1732233811858,0.050802,98307.0,98305.0,0.5718]
[1732233812059,0.0508,98312.0,98305.0,0.5738]
[1732233812255,0.01113426,98311.0,98305.0,0.5738]
[1732233812561,0.002,98307.0,98305.0,0.5918]
[1732233813165,0.001,98307.0,98305.0,0.5908]
[1732233813975,0.002,98312.0,98305.0,0.5928]
[1732233814374,0.0528,98312.0,98305.0,0.5928]
[1732233814572,0.050803,98306.0,98305.0,0.5928]
[1732233814770,0.050803,98306.0,98305.0,0.5958]
[1732233815478,0.050803,98306.0,98305.0,0.5718]
[1732233815979,0.050803,98306.0,98305.0,0.5738]
[1732233816674,0.051803,98306.0,98305.0,0.5718]
[1732233817263,0.053803,98306.0,98305.0,0.5708]
[1732233817473,0.003,98306.0,98305.0,0.5708]
[1732233818082,0.001,98306.0,98305.0,0.5708]
[1732233818270,0.002,98306.0,98305.0,0.5708]
[1732233818665,0.050802,98308.0,98305.0,0.5718]
[1732233818866,0.050802,98308.0,98305.0,0.5728]
[1732233819066,0.050803,98306.0,98305.0,0.5728]
[1732233819379,0.050803,98306.0,98305.0,0.5738]
[1732233820179,0.06173846,98306.0,98305.0,0.5738]
[1732233820478,0.06173846,98306.0,98305.0,0.5728]
[1732233820883,0.050803,98306.0,98305.0,0.5728]
[1732233821267,0.050803,98306.0,98305.0,0.5708]
[1732233821473,0.050803,98306.0,98305.0,0.5738]
[1732233821879,0.050803,98306.0,98305.0,0.5748]
[1732233822275,0.050803,98306.0,98305.0,0.5728]
[1732233822276,0.06176066,98306.0,98305.0,0.5728]
[1732233822780,0.06176066,98306.0,98305.0,0.5708]
[1732233822976,0.050803,98306.0,98305.0,0.5708]
[1732233823184,0.06174134,98306.0,98305.0,0.5708]
[1732233823476,0.050803,98306.0,98305.0,0.5708]
[1732233823679,0.06274312,98306.0,98305.0,0.5708]
[1732233823871,0.0736831,98306.0,98305.0,0.5708]
[1732233824271,0.0746831,98306.0,98305.0,0.5708]
[1732233824475,0.0238801,98306.0,98305.0,0.5708]
[1732233824771,0.0736831,98306.0,98305.0,0.5708]
[1732233824970,0.0756831,98306.0,98305.0,0.5708]
[1732233825167,0.0746831,98306.0,98305.0,0.5708]
[1732233825672,0.0726831,98306.0,98305.0,0.5708]
[1732233825872,0.0726831,98306.0,98305.0,0.5718]
[1732233826169,0.0726831,98306.0,98305.0,0.5728]
[1732233826774,0.09043358,98306.0,98305.0,0.5718]
[1732233828584,0.0726831,98306.0,98305.0,0.5718]
[1732233829975,0.07277592,98306.0,98305.0,0.5718]
[1732233831480,0.0618358,98306.0,98305.0,0.5718]
[1732233831681,0.07938537,98306.0,98305.0,0.5728]
[1732233831880,0.0618358,98306.0,98305.0,0.5728]
[1732233832388,0.06164073,98306.0,98305.0,0.5728]
[1732233832691,0.06164073,98306.0,98305.0,0.5718]
[1732233832989,0.06164073,98306.0,98305.0,0.5728]
[1732233833485,0.050803,98306.0,98305.0,0.5728]
[1732233833787,0.06159272,98306.0,98305.0,0.5728]
[1732233833987,0.06159272,98306.0,98305.0,0.5718]
[1732233834178,0.06159272,98306.0,98305.0,0.5738]
[1732233835092,0.01078972,98306.0,98305.0,0.5728]
[1732233835385,0.01078972,98306.0,98305.0,0.5738]
[1732233835884,0.10188393,98306.0,98305.0,0.632603]
[1732233836184,0.01078972,98306.0,98305.0,0.633603]
[1732233836983,0.09109421,98307.0,98305.0,0.5828]
[1732233837378,0.09109421,98306.0,98305.0,0.5838]
[1732233837587,0.10164113,98306.0,98305.0,0.5838]
[1732233838881,0.01054692,98306.0,98305.0,0.5838]
[1732233840287,0.050802,98307.0,98305.0,0.5838]
[1732233840491,0.01050464,98306.0,98305.0,0.5838]
[1732233841383,0.01050464,98306.0,98305.0,0.5828]
[1732233841384,0.1016183,98306.0,98305.0,0.5828]
[1732233841686,0.1016183,98306.0,98305.0,0.5838]
[1732233841891,0.1016183,98306.0,98305.0,0.5818]
[1732233842099,0.01050464,98306.0,98305.0,0.5838]
[1732233842794,0.01049409,98306.0,98305.0,0.5838]
[1732233847386,0.10159878,98306.0,98305.0,0.5838]
[1732233848492,0.01049409,98306.0,98305.0,0.5838]
[1732233849493,0.050802,98308.0,98305.0,0.5838]
[1732233849789,0.01040626,98307.0,98305.0,0.5838]
[1732233849994,0.01040626,98306.0,98305.0,0.5838]
[1732233850194,0.01040626,98307.0,98305.0,0.5838]
[1732233850495,0.01040626,98306.0,98305.0,0.5818]
[1732233850688,0.050802,98307.0,98305.0,0.5818]
[1732233850689,0.050802,98307.0,98305.0,0.5828]
[1732233850993,0.0612134,98306.0,98305.0,0.5828]
[1732233851192,0.0612134,98306.0,98305.0,0.5838]
[1732233851992,0.050803,98306.0,98305.0,0.5838]
[1732233852793,0.09107289,98306.0,98305.0,0.5838]
[1732233853194,0.14187489,98307.0,98305.0,0.5838]
[1732233853382,0.09107289,98307.0,98305.0,0.5838]
[1732233853587,0.10151458,98306.0,98305.0,0.5838]
[1732233853797,0.01044169,98306.0,98305.0,0.624603]
[1732233853989,0.0071,98313.0,98305.0,0.8438]
[1732233854294,0.0071,98313.0,98312.0,0.4116]
[1732233854494,0.050796,98319.0,98314.0,0.050798]
[1732233854689,0.050796,98319.0,98317.0,0.3608]
[1732233854886,0.050797,98318.0,98317.0,0.1]
[1732233856093,0.051797,98318.0,98317.0,0.1]
[1732233857492,0.053797,98318.0,98317.0,0.1]
[1732233858595,0.0071,98327.0,98317.0,0.6859749]
[1732233858801,0.0071,98327.0,98326.0,0.050792]
[1732233859001,0.09107349,98341.0,98326.0,0.050792]
[1732233859002,0.0071,98336.0,98326.0,0.871592]
[1732233859202,0.45427349,98343.0,98340.0,0.050785]
[1732233859203,0.0071,98341.0,98340.0,0.050785]
[1732233859501,0.06170988,98342.0,98340.0,0.555865]
[1732233859502,0.00152588,98342.0,98340.0,0.555865]
[1732233859702,0.0071,98350.0,98340.0,0.555865]
[1732233859703,0.0071,98350.0,98341.0,0.39988524]
[1732233859892,0.0071,98350.0,98349.0,0.3608]
[1732233860096,0.0071,98359.0,98349.0,0.6408]
[1732233860297,0.05078,98351.0,98349.0,0.5808]
[1732233860601,0.3608,98350.0,98349.0,0.22]
[1732233861503,0.3608,98350.0,98349.0,0.221]
[1732233862390,0.3608,98350.0,98349.0,0.223]
[1732233862898,0.40129666,98350.0,98349.0,0.223]
[1732233863897,0.40229666,98350.0,98349.0,0.222]
[1732233864095,0.40329666,98350.0,98349.0,0.22]
[1732233864596,0.40229666,98350.0,98349.0,0.22]
[1732233864797,0.40129666,98350.0,98349.0,0.22]
[1732233866808,0.40129666,98350.0,98349.0,0.221]
[1732233867699,0.40129666,98350.0,98349.0,0.222]
[1732233867899,0.40229666,98350.0,98349.0,0.222]
[1732233868505,0.40129666,98350.0,98349.0,0.223]
[1732233868707,0.40129666,98350.0,98349.0,0.222]
[1732233869297,0.40129666,98350.0,98349.0,0.223]
[1732233870708,0.40129666,98350.0,98349.0,0.221]
[1732233870909,0.76309666,98350.0,98349.0,0.221]
[1732233871102,0.76809001,98350.0,98349.0,0.1612]
[1732233871300,0.76809001,98350.0,98349.0,0.1007]
[1732233871501,0.77998346,98350.0,98349.0,0.0215]
[1732233871698,0.050784,98342.0,98341.0,0.00012524]
[1732233871899,0.503264,98342.0,98341.0,0.20582986]
[1732233872308,0.45248,98342.0,98341.0,0.20582986]
[1732233872701,0.3608,98342.0,98341.0,0.20582986]
[1732233873506,0.3608,98342.0,98341.0,0.25661486]
[1732233873904,0.09168,98348.0,98341.0,0.20582986]
[1732233874108,0.09168,98348.0,98344.0,0.050783]
[1732233874408,0.3608,98350.0,98347.0,0.050781]
[1732233874620,0.3608,98350.0,98347.0,0.240781]
[1732233875412,0.3608,98350.0,98347.0,0.19]
[1732233876506,0.050781,98348.0,98347.0,0.19]
[1732233877705,0.06156759,98348.0,98347.0,0.191]
[1732233877903,0.06156759,98348.0,98347.0,0.192]
[1732233878313,0.01078659,98348.0,98347.0,0.192]
[1732233878514,0.36637694,98350.0,98347.0,0.192]
[1732233878819,0.3608,98350.0,98347.0,0.192]
[1732233879412,0.050781,98349.0,98347.0,0.192]
[1732233879601,0.3608,98350.0,98347.0,0.192]
[1732233879807,0.050781,98348.0,98347.0,0.191]
[1732233880412,0.050781,98348.0,98347.0,0.19]
[1732233880612,0.06182153,98348.0,98347.0,0.19]
[1732233881412,0.06182153,98348.0,98347.0,0.191]
[1732233881811,0.01104053,98348.0,98347.0,0.191]
[1732233882111,0.10272053,98348.0,98347.0,0.191]
[1732233882413,0.15344823,98348.0,98347.0,0.192]
[1732233883218,0.15344168,98348.0,98347.0,0.192]
[1732233883518,0.29210563,98348.0,98347.0,0.192]
[1732233883816,0.17100903,98348.0,98347.0,0.192]
[1732233886419,0.47604903,98348.0,98347.0,0.192]
[1732233887623,0.47625132,98348.0,98347.0,0.192]
[1732233889116,0.17121132,98348.0,98347.0,0.192]
[1732233890020,0.05079,98331.0,98328.0,0.0745]
[1732233890319,0.19153034,98348.0,98328.0,0.1845]
[1732233890320,0.411591,98329.0,98328.0,0.1845]
[1732233890513,0.42264881,98329.0,98328.0,0.1845]
[1732233891124,0.37185781,98329.0,98328.0,0.1845]
[1732233891820,0.37185781,98329.0,98328.0,0.1905]
[1732233892326,0.37185781,98329.0,98328.0,0.1995]
[1732233892327,0.37285781,98329.0,98328.0,0.1995]
[1732233892719,0.37385781,98329.0,98328.0,0.1995]
[1732233893330,0.41395474,98329.0,98328.0,0.1995]
[1732233894215,0.40289693,98329.0,98328.0,0.1995]
[1732233894417,0.31320238,98329.0,98328.0,0.1995]
[1732233894619,0.3022,98329.0,98328.0,0.1995]
[1732233897125,0.31299864,98329.0,98328.0,0.1995]
[1732233897826,0.352991,98329.0,98328.0,0.1995]
[1732233898224,0.36374707,98329.0,98328.0,0.1995]
[1732233898730,0.31295607,98329.0,98328.0,0.1995]
[1732233900936,0.3022,98329.0,98328.0,0.1995]
[1732233901523,0.352991,98329.0,98328.0,0.1995]
[1732233901732,0.36373498,98329.0,98328.0,0.1995]
[1732233902629,0.31294398,98329.0,98328.0,0.1995]
[1732233904137,0.0071,98338.0,98337.0,0.050787]
[1732233904430,0.3003,98346.0,98344.0,0.050782]
[1732233904630,0.0173,98354.0,98349.0,0.05078]
[1732233904825,0.01039621,98353.0,98349.0,0.21]
[1732233905030,0.050779,98351.0,98349.0,0.21]
[1732233905230,0.01039621,98350.0,98349.0,0.21]
[1732233905431,0.050779,98351.0,98349.0,0.21]
[1732233905735,0.40108365,98355.0,98349.0,0.21]
[1732233905925,0.01053651,98354.0,98349.0,0.26078]
[1732233906122,0.042601,98358.0,98349.0,0.21]
[1732233906530,0.050779,98352.0,98349.0,0.21]
[1732233906926,0.002,98355.0,98349.0,0.21]
[1732233907143,0.01074992,98354.0,98349.0,0.21]
[1732233907332,0.01074992,98353.0,98349.0,0.25137989]
[1732233907539,0.042601,98358.0,98355.0,0.050777]
[1732233907540,0.08473387,98358.0,98355.0,0.050777]
[1732233907731,0.08473387,98358.0,98356.0,0.050776]
[1732233907935,0.01079055,98357.0,98356.0,0.240776]
[1732233908137,0.08473387,98358.0,98356.0,0.240776]
[1732233909136,0.08273387,98358.0,98356.0,0.240776]
[1732233909338,0.13350987,98358.0,98356.0,0.19]
[1732233909843,0.13550987,98358.0,98356.0,0.19]
[1732233910547,0.13650987,98358.0,98356.0,0.19]
[1732233914139,0.08573387,98358.0,98356.0,0.19]
[1732233914437,0.045601,98358.0,98357.0,0.050776]
[1732233914637,0.045601,98358.0,98357.0,0.380776]
[1732233915035,0.0173,98366.0,98357.0,0.685776]
[1732233915228,0.0094,98367.0,98365.0,0.411572]
[1732233915439,0.0094,98372.0,98370.0,0.050769]
[1732233915634,0.41212401,98381.0,98376.0,0.050766]
[1732233915836,0.411564,98381.0,98376.0,0.270766]
[1732233916037,0.050764,98381.0,98377.0,0.05431544]
[1732233916242,0.03981143,98381.0,98378.0,0.05431444]
[1732233916429,0.00013003,98382.0,98379.0,0.00354944]
[1732233916635,0.00013003,98382.0,98380.0,0.05431344]
[1732233916943,0.00013003,98382.0,98381.0,0.00354944]
[1732233917135,0.0094,98390.0,98389.0,0.05076]
[1732233917335,0.45178782,98407.0,98389.0,0.05076]
[1732233917336,0.0094,98396.0,98393.0,0.050758]
[1732233917639,0.14087872,98400.0,98394.0,0.09430644]
[1732233917944,0.14087872,98400.0,98395.0,0.04104944]
[1732233918133,0.14087872,98400.0,98396.0,0.00365624]
[1732233918333,0.14087872,98400.0,98397.0,0.00355912]
[1732233918542,0.14087872,98400.0,98398.0,0.00355912]
[1732233918754,0.14087872,98400.0,98399.0,0.00355912]
[1732233919043,0.14087872,98400.0,98399.0,0.2]
[1732233920145,0.14087872,98400.0,98399.0,0.201]
[1732233920342,0.14187872,98400.0,98399.0,0.201]
[1732233920645,0.14187872,98400.0,98399.0,0.2]
[1732233920848,0.14187872,98400.0,98399.0,0.201]
[1732233921142,0.14087872,98400.0,98399.0,0.202]
[1732233921843,0.14087872,98400.0,98399.0,0.201]
[1732233922734,0.14087872,98400.0,98399.0,0.2]
[1732233923542,0.14287872,98400.0,98399.0,0.2]
[1732233923750,0.102,98400.0,98399.0,0.2]
[1732233925644,0.101,98400.0,98399.0,0.202]
[1732233925849,0.101,98400.0,98399.0,0.5628]
[1732233926946,0.0094,98408.0,98407.0,0.05075]
[1732233927141,0.0094,98414.0,98410.0,0.050748]
[1732233927346,0.0094,98421.0,98415.0,0.050746]
[1732233927541,0.04062308,98420.0,98415.0,0.270746]
[1732233927745,0.04062308,98420.0,98415.0,0.631546]
[1732233928646,0.04062308,98420.0,98415.0,0.5808]
[1732233928849,0.0047,98422.0,98417.0,0.050745]
[1732233929037,0.04033803,98422.0,98417.0,0.19]
[1732233929348,0.0047,98427.0,98417.0,0.19]
[1732233929349,0.411544,98419.0,98417.0,0.19]
[1732233929545,0.01062777,98418.0,98417.0,0.19]
[1732233930246,0.411544,98419.0,98417.0,0.19]
[1732233930748,0.001,98418.0,98417.0,0.19]
[1732233931853,0.003,98418.0,98417.0,0.19]
[1732233932453,0.01336289,98418.0,98417.0,0.19]
[1732233932950,0.003,98418.0,98417.0,0.19]
[1732233933150,0.002,98418.0,98417.0,0.19]
[1732233933351,0.012232,98418.0,98417.0,0.19]
[1732233933546,0.104032,98418.0,98417.0,0.19]
[1732233933945,0.105032,98418.0,98417.0,0.19]
[1732233934145,0.10502196,98418.0,98417.0,0.19]
[1732233934546,0.01322196,98418.0,98417.0,0.19]
[1732233934752,0.19600978,98418.0,98417.0,0.19]
[1732233935150,0.0948,98418.0,98417.0,0.03771225]
[1732233935350,0.0948,98418.0,98405.0,0.0047]
[1732233935351,0.050751,98406.0,98405.0,0.0047]
[1732233935553,0.050751,98406.0,98396.0,9.712e-05]
[1732233935554,0.050752,98404.0,98396.0,9.712e-05]
[1732233935756,0.0918,98403.0,98396.0,0.20009712]
[1732233935947,0.050754,98401.0,98396.0,0.20009712]
[1732233936149,0.050755,98399.0,98396.0,0.20009712]
[1732233936956,0.0918,98403.0,98396.0,0.20009712]
[1732233936957,0.050756,98398.0,98396.0,0.20009712]
[1732233937155,0.3608,98397.0,98396.0,0.20009712]
[1732233937751,0.37092451,98397.0,98396.0,0.20309712]
[1732233938147,0.41107959,98397.0,98396.0,0.14486787]
[1732233938353,0.41107959,98397.0,98396.0,0.04892752]
[1732233938553,0.53339669,98397.0,98396.0,0.04592752]
[1732233938756,0.53339669,98397.0,98396.0,0.04292752]
[1732233939057,0.41407959,98397.0,98396.0,0.04292752]
[1732233939456,0.53539669,98397.0,98396.0,0.04292752]
[1732233939654,0.41407959,98397.0,98396.0,0.04292752]
[1732233939855,0.58656159,98397.0,98396.0,0.04292752]
[1732233940160,0.49579508,98397.0,98396.0,0.04292752]
[1732233940353,0.40395508,98397.0,98396.0,0.04292752]
[1732233940754,0.3638,98397.0,98396.0,0.04292752]
[1732233940956,0.003,98397.0,98396.0,0.04292752]
[1732233941550,0.003,98397.0,98396.0,0.15292752]
[1732233941756,0.002,98397.0,98396.0,0.15292752]
[1732233942060,0.06565,98409.0,98396.0,0.03935677]
[1732233942359,0.06565,98409.0,98398.0,0.3608]
[1732233942565,0.06565,98409.0,98399.0,0.00363114]
[1732233942765,0.06565,98409.0,98400.0,0.00363114]
[1732233943069,0.050751,98407.0,98401.0,0.00363114]
[1732233943253,0.050751,98407.0,98402.0,0.00363114]
[1732233943456,0.050751,98407.0,98403.0,0.00363114]
[1732233943649,0.050751,98407.0,98404.0,0.00363114]
[1732233943866,0.04017434,98411.0,98405.0,0.00363114]
[1732233944055,0.09076651,98413.0,98406.0,0.00363114]
[1732233944251,0.01002983,98412.0,98406.0,0.2]
[1732233944451,0.01002983,98411.0,98407.0,0.0408]
[1732233944659,0.09076651,98411.0,98407.0,0.2709]
[1732233944964,0.01007111,98410.0,98407.0,0.2709]
[1732233945261,0.01007111,98409.0,98407.0,0.2709]
[1732233945487,0.10084029,98408.0,98407.0,0.2709]
[1732233946066,0.1008061,98408.0,98407.0,0.2709]
[1732233946252,0.01003959,98408.0,98407.0,0.2709]
[1732233946453,0.01003959,98408.0,98407.0,0.32165]
[1732233946662,0.1008061,98408.0,98407.0,0.32522709]
[1732233946867,0.09076651,98408.0,98407.0,0.32522709]
[1732233947567,0.02986651,98409.0,98407.0,0.45522709]
[1732233947864,0.060144,98420.0,98408.0,0.28487501]
[1732233948064,0.00995487,98418.0,98414.0,0.3608]
[1732233948363,0.0015245,98426.0,98415.0,0.00357709]
[1732233948364,0.00995487,98417.0,98415.0,0.00357709]
[1732233948555,0.0164245,98426.0,98416.0,0.00357709]
[1732233948757,0.0100036,98425.0,98417.0,0.00357709]
[1732233949057,0.0164245,98426.0,98417.0,0.00357709]
[1732233949058,0.002,98419.0,98418.0,0.00366467]
[1732233949257,0.002,98419.0,98418.0,0.2195498]
[1732233950153,0.003,98419.0,98418.0,0.2195498]
[1732233950468,0.050742,98423.0,98418.0,0.2195498]
[1732233950662,0.050742,98423.0,98422.0,0.3608]
[1732233950965,0.03978092,98426.0,98422.0,0.5603498]
[1732233951166,0.00251621,98430.0,98423.0,0.0602918]
[1732233951359,0.00251621,98430.0,98424.0,0.0095498]
[1732233951360,0.05085521,98430.0,98424.0,0.0095498]
[1732233951662,0.092461,98430.0,98425.0,0.0095498]
[1732233951974,0.092461,98430.0,98426.0,0.0095498]
[1732233952175,0.092461,98430.0,98427.0,0.0095498]
[1732233952356,0.094461,98430.0,98428.0,0.0095498]
[1732233952553,0.094461,98430.0,98429.0,0.0095498]
[1732233952865,0.094461,98430.0,98429.0,0.1895498]
[1732233953184,0.095461,98430.0,98429.0,0.1895498]
[1732233953354,0.095461,98430.0,98429.0,0.18366467]
[1732233953764,0.044722,98430.0,98429.0,0.18366467]
[1732233953970,0.00211621,98430.0,98429.0,0.18366467]
[1732233954157,0.00311621,98430.0,98429.0,0.18366467]
[1732233954770,0.00111621,98430.0,98429.0,0.18366467]
[1732233954969,0.00311621,98430.0,98429.0,0.18366467]
[1732233955370,0.00111621,98430.0,98429.0,0.18366467]
[1732233955671,0.00211621,98430.0,98429.0,0.18366467]
[1732233957264,0.04382684,98430.0,98429.0,0.18366467]
[1732233957465,0.00211621,98430.0,98429.0,0.18366467]
[1732233959467,0.00211621,98430.0,98429.0,0.18954424]
[1732233960767,0.04206396,98430.0,98429.0,0.18954424]
[1732233961467,0.00211621,98430.0,98429.0,0.18954424]
[1732233961672,0.00211621,98430.0,98429.0,0.55034424]
[1732233961873,0.00211621,98430.0,98429.0,0.18954424]
[1732233962064,0.00211621,98430.0,98429.0,0.55034424]
[1732233962260,0.00211621,98430.0,98429.0,0.60108324]
[1732233962569,0.3608,98441.0,98429.0,0.60108324]
[1732233962570,0.09907125,98450.0,98429.0,0.54443968]
[1732233962862,0.09907125,98450.0,98430.0,0.00363968]
[1732233963077,0.14979925,98450.0,98449.0,0.3608]
[1732233963371,0.06583519,98450.0,98449.0,0.20363968]
[1732233963675,0.39185594,98450.0,98449.0,0.20374789]
[1732233963875,0.48365594,98450.0,98449.0,0.20374789]
[1732233964764,0.39185594,98450.0,98449.0,0.20374789]
[1732233964964,0.39185594,98450.0,98449.0,0.20010821]
[1732233964965,0.48365594,98450.0,98449.0,0.20010821]
[1732233965161,0.48565594,98450.0,98449.0,0.20364356]
[1732233965367,0.52691465,98450.0,98449.0,0.20364356]
[1732233965560,0.52691465,98450.0,98449.0,0.20010821]
[1732233965561,0.52591465,98450.0,98449.0,0.20010821]
[1732233965763,0.52691465,98450.0,98449.0,0.13954682]
[1732233965962,0.52591465,98450.0,98449.0,0.07932968]
[1732233967167,0.050734,98438.0,98437.0,0.3608]
[1732233967375,0.15256601,98438.0,98437.0,0.21]
[1732233967872,0.44729373,98438.0,98437.0,0.03549577]
[1732233968073,0.44729373,98438.0,98437.0,0.19]
[1732233968074,0.47452311,98438.0,98437.0,0.19]
[1732233968271,0.47446402,98438.0,98437.0,0.19]
[1732233968766,0.47646402,98438.0,98437.0,0.19]
[1732233968962,0.47651031,98438.0,98437.0,0.19]
[1732233969565,0.17175031,98438.0,98437.0,0.19]
[1732233969768,0.17275031,98438.0,98437.0,0.19]
[1732233969968,0.15598384,98438.0,98437.0,0.19]
[1732233970167,0.17262324,98438.0,98437.0,0.19]
[1732233970671,0.15598384,98438.0,98437.0,0.19]
[1732233971174,0.19618944,98438.0,98437.0,0.19]
[1732233971367,0.18573933,98438.0,98437.0,0.19]
[1732233971570,0.21360518,98438.0,98437.0,0.19]
[1732233971765,0.21300168,98438.0,98437.0,0.19]
[1732233971966,0.050739,98429.0,98427.0,0.0047]
[1732233972169,0.07800235,98428.0,98427.0,0.18]
[1732233974076,0.06222552,98428.0,98427.0,0.18]
[1732233975177,0.06422552,98428.0,98427.0,0.09632915]
[1732233975480,1.56422552,98428.0,98427.0,0.09632915]
[1732233975673,1.56402732,98428.0,98427.0,0.09632915]
[1732233977170,0.06402732,98428.0,98427.0,0.09632915]
[1732233977475,0.06302732,98428.0,98427.0,0.09632915]